fUSD/lending_fUSD_20251011
["ID","MTS","AMOUNT","RATE_DAILY","PERIOD"]
[390899965,1760205032695,-1266.0,0.00016233,2]
[390899966,1760205032706,-3405.0,0.00016233,2]
[390899967,1760205032716,-2048.0,0.00016233,2]
[390899968,1760205032726,-1587.0,0.00016233,2]
[390899969,1760205032736,-571.0,0.00016233,2]
[390899970,1760205032746,-1309.548,0.00016233,2]
[390899971,1760205032756,-816.0,0.00016233,2]
[390899972,1760205032766,-1218.39,0.00016233,2]
[390899973,1760205032778,-9999.99,0.00016233,2]
[390899974,1760205032788,-1526.57,0.00016233,2]
[390899975,1760205032799,-999.99,0.00016233,2]
[390899976,1760205032808,-9999.99,0.00016233,2]
[390899989,1760205033349,-150.99,0.00016233,2]
[390899990,1760205033389,-9999.99,0.00016233,2]
[390899991,1760205033400,-150.99,0.00016233,2]
[390899992,1760205033409,-3763.31,0.00016233,2]
[390899993,1760205033418,-9999.99,0.00016233,2]
[390899994,1760205033428,-6439.0,0.00016233,2]
[390899995,1760205033437,-4120.0,0.00016233,2]
[390899996,1760205033447,-622.0,0.00016233,2]
[390899997,1760205033456,-6145.0,0.00016233,2]
[390899998,1760205033466,-250.0,0.00016499,2]
[390899999,1760205033476,-150.0,0.00016499,2]
[390900000,1760205033486,-2500.0,0.00016499,2]
[390900001,1760205033496,-195.0,0.00016499,2]
[390900002,1760205033506,-300.0,0.00016499,2]
[390900003,1760205033516,-212.61446279,0.00016499,2]
[390900004,1760205033525,-2328.03,0.00016775,2]
[390900005,1760205033535,-211.04,0.000169,7]
[390900006,1760205033545,-500.0,0.000169,2]
[390900007,1760205033557,-201.0,0.00017036,2]
[390900008,1760205033566,-3429.51441875,0.00017251,2]
[390900009,1760205033576,-1000.0,0.00017266,2]
[390900010,1760205033585,-200.0,0.00017267,2]
[390900011,1760205033595,-1000.0,0.00017267,2]
[390900012,1760205033604,-670.58624095,0.00017267,2]
[390900013,1760205033614,-1000.0,0.00017267,2]
[390900014,1760205033623,-500.0,0.00017267,2]
[390900015,1760205033632,-397.54705706,0.00017267,2]
[390900016,1760205033643,-1000.0,0.00017267,2]
[390900017,1760205033653,-1000.0,0.00017267,2]
[390900018,1760205033663,-1000.0,0.00017267,2]
[390900019,1760205033672,-1000.0,0.00017267,2]
[390900020,1760205033681,-842.83918875,0.00017267,2]
[390900021,1760205033691,-322.6107,0.00017267,2]
[390900022,1760205033701,-182.09299339,0.00017267,2]
[390900023,1760205033710,-1000.0,0.00017267,2]
[390900024,1760205033720,-1000.0,0.00017267,2]
[390900025,1760205033729,-1000.0,0.00017267,2]
[390900026,1760205033739,-665.2886337,0.00017267,2]
[390900027,1760205033749,-500.0,0.00017276,2]
[390900028,1760205033758,-150.0,0.00017276,2]
[390900029,1760205033768,-150.0,0.00017276,2]
[390900030,1760205033782,-150.0,0.00017276,2]
[390900031,1760205033791,-150.0,0.00017276,2]
[390900032,1760205033801,-170.22,0.00017278,2]
[390900033,1760205033811,-500.0,0.00017331,2]
[390900034,1760205033822,-150.0,0.00017331,2]
[390900035,1760205033831,-150.0,0.00017331,2]
[390900036,1760205033841,-172.0,0.0001734,2]
[390900037,1760205033851,-935.0,0.00017351,2]
[390900038,1760205033862,-4378.34218253,0.00017364,2]
[390900039,1760205033871,-717.05399397,0.00017383,2]
[390900040,1760205033880,-500.0,0.00017386,2]
[390900041,1760205033889,-200.0,0.00017386,2]
[390900042,1760205033898,-200.0,0.00017386,2]
[390900043,1760205033907,-500.0,0.0001744,2]
[390900044,1760205033917,-3429.51441873,0.00017445,2]
[390900045,1760205033926,-1000.0,0.00017448,2]
[390900046,1760205033935,-200.0,0.00017495,2]
[390900047,1760205033944,-172.0,0.00017516,2]
[390900048,1760205033954,-500.0,0.00017525,2]
[390900049,1760205033963,-151.0,0.00017534,2]
[390900050,1760205033972,-200.0,0.00017577,2]
[390900051,1760205033981,-267.46074303,0.00017592,2]
[390900052,1760205033990,-172.0,0.00017592,2]
[390900053,1760205034000,-17279.5554755,0.00017635,2]
[390900054,1760205034009,-184.5846208,0.00017635,2]
[390900055,1760205034018,-3429.51441873,0.0001764,2]
[390900056,1760205034027,-500.0,0.00017667,2]
[390900057,1760205034037,-151.0,0.00017719,2]
[390900058,1760205034046,-200.0,0.00017719,2]
[390900059,1760205034056,-1000.0,0.00017719,2]
[390900060,1760205034065,-200.0,0.00017719,2]
[390900061,1760205034075,-200.0,0.00017719,2]
[390900062,1760205034084,-200.0,0.00017719,2]
[390900063,1760205034095,-65720.85766257,0.00017719,2]
[390900064,1760205034108,-563.85712284,0.00017719,2]
[390900065,1760205034132,-15313.252996,0.00017719,2]
[390900066,1760205034155,-1403.84725605,0.00017719,2]
[390900067,1760205034229,-430.93434079,0.00017719,2]
[390900068,1760205034295,-2408.8,0.00017719,2]
[390900069,1760205034318,-323.44091325,0.00017719,2]
[390900070,1760205034330,-1741.4297148,0.00017719,2]
[390900071,1760205034341,-35832.10669231,0.00017719,2]
[390900072,1760205034372,-3676.93591463,0.00017719,2]
[390900078,1760205038536,-475.23572958,0.0001621,2]
[390900079,1760205038561,-237.49503595,0.00017719,2]
[390900080,1760205038578,-10760.96055947,0.00017719,2]
[390900091,1760205041313,-1202.799999,0.00017719,2]
[390900092,1760205041326,-4096.66337701,0.00017719,2]
[390900093,1760205042424,-3843.43237001,0.00017719,2]
[390900094,1760205042436,-601.50114901,0.00017719,2]
[390900095,1760205042452,-4816.6,0.00017719,2]
[390900096,1760205042471,-1075.70213049,0.00017719,2]
[390900097,1760205042502,-1417.5,0.00017719,2]
[390900098,1760205042689,-23517.57915,0.00017719,2]
[390900103,1760205044230,-901.0,0.00016233,2]
[390900104,1760205044240,-2751.600003,0.00017719,2]
[390900105,1760205044252,-475612.41989965,0.00017719,2]
[390900106,1760205044275,-722099.76449524,0.00017719,2]
[390900107,1760205044539,-5400.99738397,0.00017719,2]
[390900111,1760205046351,-166.892,0.00017719,2]
[390900112,1760205046363,-4885.47190026,0.00017719,2]
[390900113,1760205046414,-2055.17029171,0.00017719,2]
[390900114,1760205046491,-565.63680002,0.00017719,2]
[390900144,1760205333571,-671.94,0.00013699,2]
[390900145,1760205333600,-500.0,0.00014899,2]
[390900146,1760205333629,-1142.02872617,0.00015068,2]
[390900147,1760205333659,-300.0,0.00015068,2]
[390900148,1760205333687,-167.20514632,0.000162,2]
[390900149,1760205333713,-249.53920576,0.000162,2]
[390900150,1760205333743,-475.23572958,0.00016208,2]
[390900151,1760205333771,-1200.0,0.00016231,2]
[390900152,1760205333799,-920.0,0.00016232,2]
[390900153,1760205333834,-300.0,0.00016232,2]
[390900154,1760205333864,-300.0,0.00016232,2]
[390900155,1760205333897,-922.09832536,0.00016232,2]
[390900156,1760205333929,-300.0,0.00016232,2]
[390900157,1760205333959,-377.58923792,0.00016232,2]
[390900158,1760205333987,-210.336,0.00016233,2]
[390900159,1760205334014,-622.0,0.00016233,2]
[390900160,1760205334044,-6439.0,0.00016233,2]
[390900161,1760205334071,-901.0,0.00016233,2]
[390900162,1760205334100,-167.20514632,0.000164,2]
[390900163,1760205334127,-167.20514632,0.000165,2]
[390900164,1760205334155,-189.94,0.000169,7]
[390900165,1760205334183,-2000.0,0.00016979,2]
[390900166,1760205334211,-3283.7566369,0.00017364,2]
[390900167,1760205334238,-150.0,0.00017445,2]
[390900168,1760205334267,-2057.80283754,0.00017476,2]
[390900169,1760205334296,-183.49598673,0.000175,2]
[390900170,1760205334325,-200.0,0.00017577,2]
[390900171,1760205335180,-7674.0775279,0.00017715,2]
[390900172,1760205335217,-3942.5713582,0.00017715,2]
[390900173,1760205335238,-731.2645712,0.00017715,2]
[390900174,1760205335259,-200.0,0.00017719,2]
[390900175,1760205335286,-120142.16042366,0.00017719,2]
[390900176,1760205335308,-171.16571012,0.00017722,2]
[390900177,1760205335332,-172.0,0.00017726,2]
[390900178,1760205335354,-75153.95564843,0.00017726,2]
[390900179,1760205335377,-319265.08536887,0.00017728,2]
[390900180,1760205335398,-203.13133951,0.00017731,2]
[390900181,1760205335419,-203.13133951,0.00017734,2]
[390900182,1760205335440,-39644.07858768,0.00017734,2]
[390900183,1760205335885,500.0,0.00026027,120]
[390900184,1760205336306,500.0,0.00026082,120]
[390900185,1760205336525,500.0,0.00026137,120]
[390900186,1760205336699,572.0,0.00026191,120]
[390900491,1760206231919,-1050.0627,0.00014968,2]
[390900493,1760206231928,-64.57006947,0.00014973,2]
[390900495,1760206231939,-434.59853079,0.00014973,2]
[390900503,1760206232311,-212.10055179,0.00014973,2]
[390900504,1760206232340,-1190.67401331,0.00014973,2]
[390900505,1760206232349,-195.88298403,0.00014973,2]
[390900506,1760206232359,-195.0,0.00014978,2]
[390900507,1760206232368,-250.0,0.00014988,2]
[390900508,1760206232377,-1142.67071368,0.00015008,2]
[390900509,1760206232388,-561.98707749,0.00015008,2]
[390900510,1760206232398,-195.0,0.00015373,2]
[390900511,1760206232407,-84.11060854,0.0001591,2]
[390900512,1760206232418,-404.53844161,0.0001591,2]
[390900513,1760206232449,-2665.43619285,0.0001591,2]
[390900514,1760206232459,-1600.0,0.00015991,2]
[390900515,1760206232468,-1200.0,0.0001604,2]
[390900516,1760206232477,-250.0,0.00016041,7]
[390900517,1760206232486,-150.0,0.00016179,2]
[390900518,1760206232496,-300.0,0.00016199,2]
[390900519,1760206232505,-300.0,0.00016199,2]
[390900520,1760206232514,-166.35947051,0.000162,2]
[390900521,1760206232523,-1218.39,0.000162,2]
[390900522,1760206232532,-234.08720485,0.000162,2]
[390900523,1760206232541,-1200.0,0.0001622,2]
[390900524,1760206232550,-8882.6885148,0.00016224,2]
[390900525,1760206232560,-257.91778498,0.00016224,2]
[390900526,1760206232569,-550.0,0.00016233,2]
[390900527,1760206232578,-3405.0,0.00016234,2]
[390900528,1760206232587,-740.0,0.00016234,2]
[390900529,1760206232596,-1266.0,0.00016234,2]
[390900530,1760206232606,-2048.0,0.00016234,2]
[390900531,1760206232615,-605.927,0.00016234,2]
[390900532,1760206232623,-1587.0,0.00016234,2]
[390900533,1760206232632,-1309.0,0.00016234,2]
[390900534,1760206232647,-571.0,0.00016234,2]
[390900535,1760206232659,-816.0,0.00016234,2]
[390900536,1760206232668,-4120.0,0.00016234,2]
[390900537,1760206232677,-622.0,0.00016234,2]
[390900538,1760206232686,-475.23572958,0.0001624,2]
[390900539,1760206232695,-1377.06689399,0.00016279,2]
[390900540,1760206232704,-1000.0,0.00016464,2]
[390900541,1760206232713,-286.5669103,0.00016465,2]
[390900542,1760206232722,-349.07147862,0.00016465,2]
[390900543,1760206232731,-300.0,0.00016465,2]
[390900544,1760206232740,-250.0,0.00016465,2]
[390900545,1760206232749,-2500.0,0.00016465,2]
[390900546,1760206232758,-150.0,0.00016465,2]
[390900547,1760206232767,-2000.0,0.00016465,2]
[390900548,1760206232777,-300.0,0.00016465,2]
[390900549,1760206232787,-250.0,0.00016465,2]
[390900550,1760206232796,-195.0,0.00016465,2]
[390900551,1760206232808,-301.28221431,0.00016465,2]
[390900552,1760206232817,-2500.0,0.00016465,2]
[390900553,1760206232828,-150.0,0.00016465,2]
[390900554,1760206232838,-1277.78,0.00016478,2]
[390900555,1760206232848,-200.0,0.00016492,2]
[390900556,1760206232858,-247.85,0.00016564,2]
[390900557,1760206232868,-2735.7802421,0.0001663,2]
[390900558,1760206232877,-34079.53,0.00016631,2]
[390900559,1760206232887,-170.72596355,0.0001665,2]
[390900560,1760206232895,-500.0,0.0001665,2]
[390900561,1760206232904,-198.39458333,0.0001665,2]
[390900562,1760206232913,-812.0928,0.00016736,2]
[390900563,1760206232923,-2207.799,0.00016737,2]
[390900564,1760206232932,-250.0,0.00016825,2]
[390900565,1760206232941,-151.0,0.00016827,2]
[390900566,1760206232950,-151.0,0.00016827,2]
[390900567,1760206232959,-88.36442447,0.00016827,2]
[390900568,1760206232971,-111.63557553,0.00016827,2]
[390900569,1760206232981,-151.0,0.00016827,2]
[390900570,1760206232990,-151.0,0.00016827,2]
[390900571,1760206232999,-151.0,0.00016827,2]
[390900572,1760206233008,-151.0,0.00016827,2]
[390900573,1760206233016,-670.58624095,0.00016827,2]
[390900574,1760206233025,-200.0,0.00016827,2]
[390900575,1760206233035,-151.77024096,0.00016827,2]
[390900576,1760206233045,-151.0,0.00016827,2]
[390900577,1760206233060,-500.0,0.00016827,2]
[390900578,1760206233070,-500.0,0.00016827,2]
[390900579,1760206233079,-151.0,0.00016827,2]
[390900580,1760206233089,-322.6107,0.00016827,2]
[390900581,1760206233098,-500.0,0.00016827,2]
[390900582,1760206233108,-151.0,0.00016827,2]
[390900583,1760206233118,-151.0,0.00016827,2]
[390900584,1760206233128,-500.0,0.00016827,2]
[390900585,1760206233137,-171.83878009,0.00016827,2]
[390900586,1760206233149,-151.0,0.00016827,2]
[390900587,1760206233160,-151.0,0.00016827,2]
[390900588,1760206233169,-151.0,0.00016827,2]
[390900589,1760206233179,-151.0,0.00016827,2]
[390900590,1760206233189,-151.0,0.00016827,2]
[390900591,1760206233199,-151.0,0.00016827,2]
[390900592,1760206233209,-151.0,0.00016827,2]
[390900593,1760206233219,-200.0,0.00016827,2]
[390900594,1760206233228,-151.0,0.00016827,2]
[390900595,1760206233239,-151.0,0.00016827,2]
[390900596,1760206233248,-151.0,0.00016827,2]
[390900597,1760206233258,-151.0,0.00016827,2]
[390900598,1760206233268,-155.02238158,0.00016827,2]
[390900599,1760206233277,-151.0,0.00016827,2]
[390900600,1760206233287,-151.0,0.00016827,2]
[390900601,1760206233296,-151.0,0.00016827,2]
[390900602,1760206233306,-151.0,0.00016827,2]
[390900603,1760206233316,-151.0,0.00016827,2]
[390900604,1760206233326,-151.0,0.00016827,2]
[390900605,1760206233335,-151.0,0.00016827,2]
[390900606,1760206233344,-151.0,0.00016827,2]
[390900607,1760206233354,-151.0,0.00016827,2]
[390900608,1760206233363,-1000.0,0.00016827,2]
[390900609,1760206233374,-151.0,0.00016827,2]
[390900610,1760206233383,-151.0,0.00016827,2]
[390900611,1760206233392,-152.00189941,0.00016827,2]
[390900612,1760206234355,-702.73856019,0.00016827,2]
[390900613,1760206234369,-145.2595404,0.00016827,2]
[390900614,1760206234378,-155.2589367,0.00016827,2]
[390900615,1760206234389,-151.0,0.00016827,2]
[390900616,1760206234400,-220.54750317,0.00016827,2]
[390900617,1760206234411,-531.67165279,0.00016827,2]
[390900781,1760206239393,-163.69,0.00016063,2]
[390900783,1760206239403,-247.78084404,0.00016827,2]
[390900785,1760206239412,-151.0,0.00016827,2]
[390900787,1760206239421,-451.21215516,0.00016827,2]
[390900791,1760206239446,-482.25934277,0.00016827,2]
[390900793,1760206239458,-66.52850207,0.00016827,2]
[390900795,1760206239467,-1000.0,0.00016827,2]
[390900797,1760206239476,-591.78929793,0.00016827,2]
[390900799,1760206239488,-408.21070207,0.00016827,2]
[390900801,1760206239498,-136.69713436,0.00016827,2]
[390900876,1760206242299,-901.0,0.00016417,2]
[390900877,1760206242314,-863.30286564,0.00016827,2]
[390900878,1760206242329,-479.69713436,0.00016827,2]
[390900879,1760206242347,-308.06374112,0.00016827,2]
[390900880,1760206242361,-500.0,0.00016834,2]
[390900881,1760206242375,-500.0,0.00016834,2]
[390900882,1760206242388,-500.0,0.00016834,2]
[390900883,1760206242403,-500.0,0.00016834,2]
[390900884,1760206242417,-193.0683716,0.00016834,2]
[390900885,1760206242434,-282.73457065,0.00016834,2]
[390900886,1760206242523,-24.19705775,0.00016834,2]
[390900887,1760206242537,-500.0,0.00016834,2]
[390900888,1760206242550,-500.0,0.00016834,2]
[390900889,1760206242564,-500.0,0.00016834,2]
[390900890,1760206242577,-500.0,0.00016834,2]
[390900891,1760206242590,-500.0,0.00016834,2]
[390900892,1760206242603,-500.0,0.00016834,2]
[390900893,1760206242617,-500.0,0.00016834,2]
[390900894,1760206242630,-500.0,0.00016834,2]
[390900895,1760206242643,-500.0,0.00016834,2]
[390900896,1760206242656,-500.0,0.00016834,2]
[390900897,1760206242669,-570.41989247,0.00016834,2]
[390900898,1760206242682,-500.0,0.00016834,2]
[390900899,1760206242694,-500.0,0.00016834,2]
[390900900,1760206242707,-500.0,0.00016834,2]
[390900901,1760206242719,-500.0,0.00016834,2]
[390900902,1760206242732,-500.0,0.00016834,2]
[390900904,1760206242745,-500.0,0.00016834,2]
[390900905,1760206242757,-500.0,0.00016834,2]
[390900908,1760206242770,-500.0,0.00016834,2]
[390900910,1760206242790,-500.0,0.00016834,2]
[390900911,1760206242805,-500.0,0.00016834,2]
[390900912,1760206242820,-500.0,0.00016834,2]
[390900913,1760206242834,-500.0,0.00016834,2]
[390900914,1760206242849,-500.0,0.00016834,2]
[390900915,1760206242864,-7722.05,0.00016922,2]
[390900916,1760206242878,-250.0,0.00017,2]
[390900917,1760206242891,-170.95,0.000171,7]
[390900918,1760206242904,-500.7956819,0.000172,2]
[390900920,1760206242917,-335.30416849,0.000172,2]
[390900921,1760206242930,-500.0,0.000172,2]
[390900922,1760206242943,-500.0,0.000172,2]
[390900923,1760206242956,-500.0,0.000172,2]
[390900924,1760206242969,-500.0,0.00017242,2]
[390900925,1760206242983,-500.0,0.00017242,2]
[390900926,1760206242997,-562.5287038,0.00017242,2]
[390900927,1760206243011,-501.49056779,0.000173,2]
[390900928,1760206243025,-160.43658543,0.000173,2]
[390900929,1760206243038,-500.0,0.000173,2]
[390900930,1760206243051,-500.0,0.000173,2]
[390900931,1760206243064,-501.10746656,0.000173,2]
[390900932,1760206243078,-501.49068223,0.000173,2]
[390900933,1760206243090,-500.0,0.000173,2]
[390900934,1760206243104,-500.0,0.000173,2]
[390900935,1760206243116,-500.0,0.000173,2]
[390900936,1760206243130,-500.0,0.000173,2]
[390900937,1760206243143,-500.0,0.000173,2]
[390900938,1760206243160,-344.0,0.00017353,2]
[390900939,1760206243172,-200.0,0.00017375,2]
[390900940,1760206243184,-200.0,0.00017375,2]
[390900941,1760206243196,-2642.62088933,0.00017379,2]
[390900942,1760206243208,-3259.21780914,0.00017486,2]
[390900943,1760206243220,-285.0,0.00017563,2]
[390900944,1760206243232,-508.90027563,0.00017586,2]
[390900945,1760206243245,-200.0,0.00017592,2]
[390900946,1760206243257,-267.46074303,0.00017593,2]
[390900947,1760206243270,-500.0,0.00017617,2]
[390900948,1760206243281,-500.0,0.00017625,2]
[390900949,1760206243294,-480.0,0.00017625,2]
[390900950,1760206243306,-3259.21780906,0.00017654,2]
[390900951,1760206243319,-163.69,0.00017669,2]
[390900952,1760206243331,-1000.0,0.000177,2]
[390900953,1760206243344,-14600.4944592,0.00017703,2]
[390900954,1760206243356,-3704.787935,0.00017703,2]
[390900955,1760206243368,-463.79703866,0.00017707,2]
[390900956,1760206243380,-500.0,0.00017707,2]
[390900957,1760206243394,-851.8036,0.00017711,2]
[390900958,1760206243407,-500.0,0.00017727,2]
[390900959,1760206243418,-2127.78056,0.00017734,2]
[390900960,1760206243430,-198884.88769615,0.00017734,2]
[390900961,1760206243446,-4490.48600002,0.00017734,2]
[390900962,1760206243485,-545.8000004,0.00017734,2]
[390901240,1760206859476,150.0,0.0001642,120]
[390901300,1760207148635,-176.24,0.00013345,2]
[390901301,1760207148658,-250.0,0.00013428,2]
[390901302,1760207148681,-73.78293607,0.00013511,2]
[390901304,1760207150116,-1404.51644828,0.00013511,2]
[390901305,1760207155087,-500.0,0.00013511,2]
[390901321,1760207239411,-195.0,0.00013724,2]
[390901322,1760207239435,-300.0,0.0001376,2]
[390901323,1760207239459,-1505.0,0.00013796,2]
[390901381,1760207432020,-2455.33162576,0.0001289,2]
[390901382,1760207432030,-250.0,0.00013343,2]
[390901383,1760207432039,-495.0,0.00013796,2]
[390901384,1760207432049,-195.0,0.00013868,2]
[390901385,1760207432059,-300.0,0.00013894,2]
[390901386,1760207432068,-274.91068765,0.00014012,2]
[390901387,1760207432077,-1100.77786405,0.00014071,2]
[390901389,1760207432086,-1200.0,0.00014178,2]
[390901391,1760207432095,-195.0,0.00014179,2]
[390901394,1760207432104,-250.0,0.00014179,2]
[390901397,1760207432113,-403.50265296,0.00014179,2]
[390901399,1760207432123,-300.0,0.00014678,2]
[390901401,1760207432134,-300.0,0.00014678,2]
[390901403,1760207432143,-150.0,0.00014678,2]
[390901404,1760207432152,-150.99,0.00014679,2]
[390901405,1760207432161,-150.0,0.00014862,2]
[390901406,1760207432170,-2000.0,0.00014862,2]
[390901408,1760207432179,-300.0,0.00014862,2]
[390901409,1760207432189,-391.8344,0.000149,2]
[390901411,1760207432198,-291.16145992,0.00014973,2]
[390901413,1760207432207,-500.0,0.00014973,2]
[390901415,1760207432217,-316.53183403,0.00014973,2]
[390901416,1760207432226,-500.0,0.00014973,2]
[390901417,1760207432236,-500.0,0.00014973,2]
[390901418,1760207432245,-191.02942621,0.0001499,2]
[390901419,1760207432255,-624.46141689,0.00014996,2]
[390901420,1760207432264,-658.73018628,0.00014996,2]
[390901421,1760207432274,-361.90361587,0.00014996,2]
[390901422,1760207432283,-159.7623193,0.00014996,2]
[390901423,1760207432292,-2781.22780715,0.00014996,2]
[390901424,1760207432301,-151.0,0.00014997,2]
[390901425,1760207432310,-169.33525204,0.00014999,2]
[390901426,1760207432320,-199.27110437,0.00014999,2]
[390901427,1760207432330,-204.18509593,0.00014999,2]
[390901428,1760207432341,-500.0,0.00014999,2]
[390901429,1760207432352,-493.58905094,0.00014999,2]
[390901430,1760207432361,-500.0,0.00014999,2]
[390901431,1760207432370,-500.0,0.00014999,2]
[390901432,1760207432379,-452.26887694,0.00014999,2]
[390901433,1760207432391,-70805.05315893,0.00015,2]
[390901434,1760207432400,-109911.05601349,0.00015,2]
[390901435,1760207432728,-15773.01569455,0.00015,2]
[390901436,1760207432739,-28883.98429041,0.00015,2]
[390901437,1760207432754,-112033.69391284,0.00015,2]
[390901438,1760207432840,-370.665,0.00015,2]
[390901441,1760207437612,-204056.87876745,0.00015,2]
[390901982,1760207443264,-817.31434984,0.00015,2]
[390901985,1760207443275,-435.22115147,0.00015,2]
[390901998,1760207443377,-1566.4769312,0.00015,2]
[390902001,1760207443397,-9720.60829613,0.00015,2]
[390902009,1760207443461,-1000.0,0.00015,2]
[390902241,1760207445765,-339772.36337129,0.00015,2]
[390902252,1760207445872,-556.5339544,0.00015,2]
[390903226,1760207469067,1234.87331367,0.00027397,120]
[390903510,1760208631822,-2111.61126599,0.000142,2]
[390903512,1760208631833,-250.0,0.00014276,2]
[390903514,1760208631842,-250.0,0.00014276,2]
[390903516,1760208631852,-195.0,0.00014277,2]
[390903518,1760208631861,-2000.0,0.00014278,2]
[390903519,1760208631877,-241.24429689,0.00014279,2]
[390903520,1760208631887,-2553.37830286,0.0001428,2]
[390903521,1760208631896,-195.0,0.00014282,2]
[390903522,1760208631907,-300.0,0.00014285,2]
[390903523,1760208631918,-300.0,0.00014288,2]
[390903524,1760208631928,-300.0,0.00014289,2]
[390903525,1760208631939,-300.0,0.00014289,2]
[390903526,1760208631951,-1200.0,0.00014289,2]
[390903527,1760208631961,-2000.0,0.0001429,2]
[390903528,1760208631971,-1470.38642368,0.0001429,2]
[390903529,1760208631981,-2500.0,0.00014295,2]
[390903530,1760208631990,-108.92101622,0.00014316,2]
[390903531,1760208632003,-191.07898378,0.00014316,2]
[390903532,1760208632014,-224.47549718,0.00014316,2]
[390903533,1760208632106,-75.52450282,0.00014316,2]
[390903534,1760208632115,-643.25637347,0.00014348,2]
[390903538,1760208632218,-782.07395127,0.00014348,2]
[390903539,1760208632231,-1074.66967526,0.00014348,2]
[390903540,1760208632241,-1614.39312198,0.00014352,2]
[390903543,1760208632343,-3128.29660856,0.00014352,2]
[390903544,1760208632354,-368.0,0.00014352,2]
[390903545,1760208632366,-1731.38816097,0.00014352,2]
[390903546,1760208632378,-1075.43,0.00014352,2]
[390903548,1760208632389,-252.11824185,0.00014352,2]
[390903550,1760208632400,-2289.85297684,0.00014352,2]
[390903551,1760208632446,-1701.6785179,0.00014352,2]
[390903552,1760208632457,-1308.42358662,0.00014352,2]
[390903553,1760208632469,-2802.49636648,0.00014352,2]
[390903554,1760208632498,-986.17788644,0.00014352,2]
[390903555,1760208632509,-425.84451,0.00014352,2]
[390903556,1760208632520,-686.36343726,0.00014352,2]
[390903557,1760208632531,-1525.23305569,0.00014352,2]
[390903558,1760208632569,-882.76564511,0.00014352,2]
[390903559,1760208637838,-79.9578843,0.00014352,2]
[390903560,1760208637848,-150.0,0.00014503,2]
[390903561,1760208637858,-1791.63171354,0.00014504,2]
[390903562,1760208637981,-37545.59828646,0.00014504,2]
[390903563,1760208637990,-150.99,0.00014504,2]
[390903564,1760208638000,-500.0,0.000146,2]
[390903565,1760208638010,-2436.21900849,0.00014606,2]
[390903566,1760208638019,-864.139578,0.00014732,2]
[390903567,1760208638029,-617.4766,0.000148,2]
[390903568,1760208638038,-4215.24177814,0.000148,2]
[390903569,1760208638048,-1000.0,0.000148,2]
[390903570,1760208638058,-1000.0,0.000148,2]
[390903571,1760208638067,-2500.0,0.000148,2]
[390903572,1760208638077,-6610.5619,0.000148,2]
[390903573,1760208638086,-537.96,0.0001485,2]
[390903574,1760208638096,-2436.21900849,0.00014891,2]
[390903575,1760208638105,-500.0,0.00014898,2]
[390903577,1760208638117,-500.0,0.00014898,2]
[390903578,1760208638126,-576.14348289,0.00014898,2]
[390903580,1760208638135,-500.0,0.00014898,2]
[390903582,1760208638145,-500.0,0.00014898,2]
[390903584,1760208638155,-500.0,0.00014898,2]
[390903586,1760208638166,-500.0,0.00014898,2]
[390903588,1760208638176,-500.0,0.00014898,2]
[390903590,1760208638186,-500.0,0.00014898,2]
[390903592,1760208638196,-500.0,0.00014898,2]
[390903593,1760208638206,-500.0,0.00014898,2]
[390903595,1760208638216,-500.0,0.00014898,2]
[390903597,1760208638225,-648.13162987,0.00014898,2]
[390903599,1760208638234,-500.0,0.00014898,2]